{"text_format":"3","workbook":"xlsx","n_sheets":2,"sheets":["Старт","Планировчик на празничен бюджет"],"not_rendered":{"defined_names":1},"read":"whole","date_system":"1900"}

{"sheet":"Старт","index":0,"n_rows":4,"n_cols":2,"rows_kept":4}
[null,"Как се използва този шаблон"]
[null,"Проследявайте разходите си с този планировчик за бюджет за празник."]
[null,"За да започнете, въведете бюджет и действителни разходи във всяка таблица с категории."]
[null,"Бюджет за празник, Обща изразходвана действителна сума и Разлика се изчисляват автоматично за вас."]

{"sheet":"Планировчик на празничен бюджет","index":1,"n_rows":36,"n_cols":14,"rows_kept":36,"merged":[[0,2,5,7],[2,10,2,11],[8,2,8,5],[8,10,8,13],[18,2,18,5],[18,10,18,13],[29,2,29,5],[29,10,29,13]]}
[null,null,"Планировчик на празничен бюджет"]
[]
[{"$nulls":10},"ПРАЗНИЧЕН БЮДЖЕТ",null,null,{"$f":"SUM(Подаръци[Бюджет],Опаковане[Бюджет],(Пътувания[Бюджет],(Храна[Бюджет],(Развлечения[Бюджет],Разни[Бюджет]))))","v":{"v":750,"d":"750.00 лв."}}]
[{"$nulls":10},"ДЕЙСТВИТЕЛНО ПОХАРЧЕНИ",null,null,{"$f":"SUM((Подаръци[Действителен],(Опаковане[Действителни],(Пътувания[Действителен],(Храна[Действителен],(Развлечения[Действителни],(Разни[Действителен])))))))","v":{"v":820,"d":"820.00 лв."}}]
[]
[{"$nulls":10},"РАЗЛИКА (над/под бюджета)",null,null,{"$f":"SUM(N3-N4)","v":{"v":-70,"d":"-70.00 лв."}}]
[]
[]
[null,null,"ПОДАРЪЦИ",{"$nulls":7},"ПРАЗНИЧНИ ЯСТИЯ"]
[null,null,"Продукт","Бюджет","Действителен","Разлика",{"$nulls":4},"Продукт","Бюджет","Действителен","Разлика"]
[null,null,"Семейни",{"v":500,"d":"500.00 лв."},{"v":495,"d":"495.00 лв."},{"$f":"Подаръци[[#This Row],[Бюджет]]-Подаръци[[#This Row],[Действителен]]","v":{"v":5,"d":"5.00 лв."}},{"$nulls":4},"Хранителни стоки",null,null,{"$f":"Храна[[#This Row],[Бюджет]]-Храна[[#This Row],[Действителен]]","v":{"v":0,"d":"0.00 лв."}}]
[null,null,"Приятели",{"v":250,"d":"250.00 лв."},{"v":325,"d":"325.00 лв."},{"$f":"Подаръци[[#This Row],[Бюджет]]-Подаръци[[#This Row],[Действителен]]","v":{"v":-75,"d":"-75.00 лв."}},{"$nulls":4},"Пиене",null,null,{"$f":"Храна[[#This Row],[Бюджет]]-Храна[[#This Row],[Действителен]]","v":{"v":0,"d":"0.00 лв."}}]
[null,null,"Колеги",null,null,{"$f":"Подаръци[[#This Row],[Бюджет]]-Подаръци[[#This Row],[Действителен]]","v":{"v":0,"d":"0.00 лв."}},{"$nulls":4},"Украса",null,null,{"$f":"Храна[[#This Row],[Бюджет]]-Храна[[#This Row],[Действителен]]","v":{"v":0,"d":"0.00 лв."}}]
[null,null,"Учители, бавачки, детегледачки и др.",null,null,{"$f":"Подаръци[[#This Row],[Бюджет]]-Подаръци[[#This Row],[Действителен]]","v":{"v":0,"d":"0.00 лв."}},{"$nulls":4},"Други (натиснете Tab в последната колона от този ред, за да добавите ред)",null,null,{"$f":"Храна[[#This Row],[Бюджет]]-Храна[[#This Row],[Действителен]]","v":{"v":0,"d":"0.00 лв."}}]
[null,null,"Благотворителни дарения",null,null,{"$f":"Подаръци[[#This Row],[Бюджет]]-Подаръци[[#This Row],[Действителен]]","v":{"v":0,"d":"0.00 лв."}},{"$nulls":7},{"$f":"Храна[[#This Row],[Бюджет]]-Храна[[#This Row],[Действителен]]","v":{"v":0,"d":"0.00 лв."}}]
[null,null,"Други (натиснете Tab в последната колона от този ред, за да добавите ред)",null,null,{"$f":"Подаръци[[#This Row],[Бюджет]]-Подаръци[[#This Row],[Действителен]]","v":{"v":0,"d":"0.00 лв."}}]
[null,null,"Общо",{"$f":"SUBTOTAL(109,Подаръци[Бюджет])","v":{"v":750,"d":"750.00 лв."}},{"$f":"SUBTOTAL(109,Подаръци[Действителен])","v":{"v":820,"d":"820.00 лв."}},{"$f":"SUBTOTAL(109,Подаръци[Разлика])","v":{"v":-70,"d":"-70.00 лв."}},{"$nulls":4},"Общо",{"$f":"SUBTOTAL(109,Храна[Бюджет])","v":{"v":0,"d":"0.00 лв."}},{"$f":"SUBTOTAL(109,Храна[Действителен])","v":{"v":0,"d":"0.00 лв."}},{"$f":"SUBTOTAL(109,Храна[Разлика])","v":{"v":0,"d":"0.00 лв."}}]
[]
[null,null,"ОПАКОВКИ",{"$nulls":7},"РАЗВЛЕЧЕНИЯ"]
[null,null,"Продукт","Бюджет","Действителни","Разлика",{"$nulls":4},"Продукт","Бюджет","Действителни","Разлика"]
[null,null,"Опаковка за подарък",null,null,{"$f":"Опаковане[[#This Row],[Бюджет]]-Опаковане[[#This Row],[Действителни]]","v":{"v":0,"d":"0.00 лв."}},{"$nulls":4},"Помощ за партито (барман, доставчик, чистачи и др.)",null,null,{"$f":"Развлечения[[#This Row],[Бюджет]]-Развлечения[[#This Row],[Действителни]]","v":{"v":0,"d":"0.00 лв."}}]
[null,null,"Етикети",null,null,{"$f":"Опаковане[[#This Row],[Бюджет]]-Опаковане[[#This Row],[Действителни]]","v":{"v":0,"d":"0.00 лв."}},{"$nulls":4},"Украса",null,null,{"$f":"Развлечения[[#This Row],[Бюджет]]-Развлечения[[#This Row],[Действителни]]","v":{"v":0,"d":"0.00 лв."}}]
[null,null,"Консумативи (панделка, тиксо и др.)",null,null,{"$f":"Опаковане[[#This Row],[Бюджет]]-Опаковане[[#This Row],[Действителни]]","v":{"v":0,"d":"0.00 лв."}},{"$nulls":4},"Храна и напитки",null,null,{"$f":"Развлечения[[#This Row],[Бюджет]]-Развлечения[[#This Row],[Действителни]]","v":{"v":0,"d":"0.00 лв."}}]
[null,null,"Кутии",null,null,{"$f":"Опаковане[[#This Row],[Бюджет]]-Опаковане[[#This Row],[Действителни]]","v":{"v":0,"d":"0.00 лв."}},{"$nulls":4},"Облекло",null,null,{"$f":"Развлечения[[#This Row],[Бюджет]]-Развлечения[[#This Row],[Действителни]]","v":{"v":0,"d":"0.00 лв."}}]
[null,null,"Пощенски разходи",null,null,{"$f":"Опаковане[[#This Row],[Бюджет]]-Опаковане[[#This Row],[Действителни]]","v":{"v":0,"d":"0.00 лв."}},{"$nulls":4},"Билети",null,null,{"$f":"Развлечения[[#This Row],[Бюджет]]-Развлечения[[#This Row],[Действителни]]","v":{"v":0,"d":"0.00 лв."}}]
[null,null,"Други (натиснете Tab в последната колона от този ред, за да добавите ред)",null,null,{"$f":"Опаковане[[#This Row],[Бюджет]]-Опаковане[[#This Row],[Действителни]]","v":{"v":0,"d":"0.00 лв."}},{"$nulls":4},"Вечери в заведение",null,null,{"$f":"Развлечения[[#This Row],[Бюджет]]-Развлечения[[#This Row],[Действителни]]","v":{"v":0,"d":"0.00 лв."}}]
[{"$nulls":10},"Други (натиснете Tab в последната колона от този ред, за да добавите ред)",null,null,{"$f":"Развлечения[[#This Row],[Бюджет]]-Развлечения[[#This Row],[Действителни]]","v":{"v":0,"d":"0.00 лв."}}]
[null,null,"Общо",{"$f":"SUBTOTAL(109,Опаковане[Бюджет])","v":{"v":0,"d":"0.00 лв."}},{"$f":"SUBTOTAL(109,Опаковане[Действителни])","v":{"v":0,"d":"0.00 лв."}},{"$f":"SUBTOTAL(109,Опаковане[Разлика])","v":{"v":0,"d":"0.00 лв."}},{"$nulls":4},"Общо",{"$f":"SUBTOTAL(109,Развлечения[Бюджет])","v":{"v":0,"d":"0.00 лв."}},{"$f":"SUBTOTAL(109,Развлечения[Действителни])","v":{"v":0,"d":"0.00 лв."}},{"$f":"SUBTOTAL(109,Развлечения[Разлика])","v":{"v":0,"d":"0.00 лв."}}]
[]
[null,null,"ПЪТУВАНЕ",{"$nulls":7},"РАЗНИ"]
[null,null,"Продукт","Бюджет","Действителен","Разлика",{"$nulls":4},"Продукт","Бюджет","Действителен","Разлика"]
[null,null,"Самолетни билети",null,null,{"$f":"Пътувания[[#This Row],[Бюджет]]-Пътувания[[#This Row],[Действителен]]","v":{"v":0,"d":"0.00 лв."}},{"$nulls":4},"Снимки от празника",null,null,{"$f":"Разни[[#This Row],[Бюджет]]-Разни[[#This Row],[Действителен]]","v":{"v":0,"d":"0.00 лв."}}]
[null,null,"Хотел",null,null,{"$f":"Пътувания[[#This Row],[Бюджет]]-Пътувания[[#This Row],[Действителен]]","v":{"v":0,"d":"0.00 лв."}},{"$nulls":4},"Газ ",null,null,{"$f":"Разни[[#This Row],[Бюджет]]-Разни[[#This Row],[Действителен]]","v":{"v":0,"d":"0.00 лв."}}]
[null,null,"Транспорт",null,null,{"$f":"Пътувания[[#This Row],[Бюджет]]-Пътувания[[#This Row],[Действителен]]","v":{"v":0,"d":"0.00 лв."}},{"$nulls":4},"Други (натиснете Tab в последната колона от този ред, за да добавите ред)",null,null,{"$f":"Разни[[#This Row],[Бюджет]]-Разни[[#This Row],[Действителен]]","v":{"v":0,"d":"0.00 лв."}}]
[null,null,"Други (натиснете Tab в последната колона от този ред, за да добавите ред)",null,null,{"$f":"Пътувания[[#This Row],[Бюджет]]-Пътувания[[#This Row],[Действителен]]","v":{"v":0,"d":"0.00 лв."}}]
[null,null,"Общо",{"$f":"SUBTOTAL(109,Пътувания[Бюджет])","v":{"v":0,"d":"0.00 лв."}},{"$f":"SUBTOTAL(109,Пътувания[Действителен])","v":{"v":0,"d":"0.00 лв."}},{"$f":"SUBTOTAL(109,Пътувания[Разлика])","v":{"v":0,"d":"0.00 лв."}},{"$nulls":4},"Общо",{"$f":"SUBTOTAL(109,Разни[Бюджет])","v":{"v":0,"d":"0.00 лв."}},{"$f":"SUBTOTAL(109,Разни[Действителен])","v":{"v":0,"d":"0.00 лв."}},{"$f":"SUBTOTAL(109,Разни[Разлика])","v":{"v":0,"d":"0.00 лв."}}]